fUST/lending_fUST_20251003
["ID","MTS","AMOUNT","RATE_DAILY","PERIOD"]
[388917845,1759497046758,-296.016059,0.00022133,7]
[388917846,1759497046767,-160.0,0.00022133,7]
[388917847,1759497046776,-151.0,0.00022133,7]
[388917848,1759497046786,-180.259874,0.00022133,7]
[388917849,1759497046795,-151.0,0.00022133,7]
[388917850,1759497046804,-151.0,0.00022133,7]
[388917851,1759497046813,-1489.387064,0.00022133,7]
[388917852,1759497046824,-1489.387064,0.00022133,7]
[388917853,1759497046834,-1489.387064,0.00022133,7]
[388917854,1759497046844,-1489.387064,0.00022133,7]
[388917855,1759497046853,-1489.387064,0.00022133,7]
[388917856,1759497046862,-1489.387064,0.00022133,7]
[388917857,1759497046871,-1489.387064,0.00022133,7]
[388917858,1759497046881,-1489.387057,0.00022133,7]
[388917859,1759497046890,-155.817894,0.00022133,7]
[388917860,1759497046899,-155.817894,0.00022133,7]
[388917861,1759497046909,-155.817894,0.00022133,7]
[388917862,1759497046920,-155.817894,0.00022133,7]
[388917863,1759497046929,-155.817894,0.00022133,7]
[388917864,1759497046938,-155.817894,0.00022133,7]
[388917865,1759497046947,-155.817894,0.00022133,7]
[388917866,1759497046957,-155.817892,0.00022133,7]
[388917867,1759497046966,-151.0,0.00022133,7]
[388917868,1759497046975,-151.0,0.00022133,7]
[388917869,1759497046984,-398.947426,0.00022133,7]
[388917870,1759497046994,-398.947426,0.00022133,7]
[388917871,1759497047004,-398.947426,0.00022133,7]
[388917872,1759497047012,-398.947426,0.00022133,7]
[388917873,1759497047022,-398.947426,0.00022133,7]
[388917874,1759497047031,-398.947426,0.00022133,7]
[388917875,1759497047041,-398.947426,0.00022133,7]
[388917876,1759497047051,-398.947429,0.00022133,7]
[388917877,1759497047060,-151.0,0.00022133,7]
[388917878,1759497047070,-151.0,0.00022133,7]
[388917879,1759497047080,-151.0,0.00022133,7]
[388917880,1759497047088,-151.0,0.00022133,7]
[388917881,1759497047097,-151.0,0.00022133,7]
[388917882,1759497047106,-151.0,0.00022133,7]
[388917883,1759497047115,-240.294674,0.00022133,7]
[388917884,1759497047124,-312.269272,0.00022133,7]
[388917885,1759497047134,-312.269272,0.00022133,7]
[388917886,1759497047143,-312.269272,0.00022133,7]
[388917887,1759497047152,-312.269272,0.00022133,7]
[388917888,1759497047162,-312.269272,0.00022133,7]
[388917889,1759497047171,-312.269272,0.00022133,7]
[388917890,1759497047181,-312.269272,0.00022133,7]
[388917891,1759497047190,-312.26928087,0.00022133,7]
[388917892,1759497047199,-166.0,0.00022133,2]
[388917893,1759497047208,-1000.0,0.00022133,2]
[388917894,1759497047218,-1000.0,0.00022133,2]
[388917895,1759497047227,-1000.0,0.00022133,2]
[388917896,1759497047237,-1000.0,0.00022133,2]
[388917897,1759497047247,-1000.0,0.00022133,2]
[388917898,1759497047257,-1000.0,0.00022133,2]
[388917899,1759497047267,-250.0,0.00022133,2]
[388917900,1759497047276,-1000.0,0.00022133,2]
[388917901,1759497047286,-1000.0,0.00022133,2]
[388917902,1759497047295,-250.0,0.00022133,2]
[388917903,1759497047305,-1000.0,0.00022133,2]
[388917904,1759497047315,-250.0,0.00022133,2]
[388917905,1759497047324,-263.2017811,0.00022133,2]
[388917906,1759497047333,-1000.0,0.00022133,2]
[388917907,1759497047343,-1000.0,0.00022133,2]
[388917908,1759497047352,-1000.0,0.00022133,2]
[388917909,1759497047362,-1000.0,0.00022133,2]
[388917910,1759497047371,-1000.0,0.00022133,2]
[388917911,1759497047380,-1000.0,0.00022133,2]
[388917912,1759497047389,-757.08192936,0.00022133,2]
[388917913,1759497047398,-344.04271155,0.00022133,2]
[388917914,1759497047408,-161.82,0.00022189,2]
[388917915,1759497047417,-500.0,0.00022211,2]
[388917916,1759497047427,-154.48680356,0.00022217,2]
[388917917,1759497047435,-274.61452088,0.00022217,2]
[388917918,1759497047446,-500.0,0.00022217,2]
[388917919,1759497047456,-450.0,0.00022242,2]
[388917920,1759497047466,-500.0,0.00022251,2]
[388917921,1759497047475,-500.0,0.00022251,2]
[388917922,1759497047485,-500.0,0.00022281,2]
[388917923,1759497047494,-580.67672975,0.00022281,2]
[388917924,1759497047503,-500.0,0.00022281,2]
[388917925,1759497047513,-1013.76750493,0.00022292,2]
[388917926,1759497047522,-500.0,0.00022305,2]
[388917927,1759497047531,-500.0,0.00022305,2]
[388917928,1759497047541,-500.0,0.00022305,2]
[388917929,1759497047550,-1030.48,0.00022305,2]
[388917930,1759497047560,-500.0,0.00022306,2]
[388917931,1759497047570,-276.41327196,0.00022319,2]
[388917932,1759497047579,-779.22,0.00022319,2]
[388917933,1759497047588,-500.44602849,0.00022322,2]
[388917934,1759497047597,-500.0,0.00022369,2]
[388917935,1759497047606,-151.71416955,0.0002237,3]
[388917936,1759497047616,-168.12662847,0.0002237,3]
[388917937,1759497047625,-200.21837261,0.0002237,3]
[388917938,1759497047634,-151.0,0.0002237,3]
[388917939,1759497047644,-151.69154469,0.0002237,3]
[388917940,1759497047653,-155.05122456,0.0002237,3]
[388917941,1759497047662,-151.0,0.0002237,3]
[388917942,1759497047671,-151.0,0.0002237,3]
[388917943,1759497047681,-158.39669752,0.0002237,3]
[388917944,1759497047691,-151.0,0.0002237,3]
[388917945,1759497047700,-151.0,0.0002237,3]
[388917946,1759497047710,-151.0,0.0002237,3]
[388917947,1759497047719,-500.0,0.0002237,3]
[388917948,1759497047729,-151.0,0.0002237,3]
[388917949,1759497047738,-151.0,0.0002237,3]
[388917950,1759497047751,-151.0,0.0002237,2]
[388917951,1759497047761,-151.0,0.0002237,3]
[388917952,1759497047770,-500.0,0.0002237,3]
[388917953,1759497047780,-151.0,0.0002237,3]
[388917954,1759497047791,-835.0,0.0002237,3]
[388917955,1759497047801,-187.71959587,0.0002237,3]
[388917956,1759497047810,-151.0,0.0002237,3]
[388917957,1759497047823,-151.0,0.0002237,3]
[388917958,1759497047834,-151.0,0.0002237,3]
[388917959,1759497047844,-161.03711392,0.0002237,3]
[388917960,1759497047853,-370.72516701,0.00022379,2]
[388917961,1759497047862,-500.0,0.000224,2]
[388917962,1759497047873,-500.0,0.000224,2]
[388917963,1759497047883,-291.02846164,0.000224,2]
[388917964,1759497047892,-500.0,0.000224,2]
[388917965,1759497047901,-151.0,0.000224,7]
[388917966,1759497047912,-151.0,0.000224,7]
[388917967,1759497047921,-758.853259,0.000224,7]
[388917968,1759497047931,-758.853259,0.000224,7]
[388917969,1759497047942,-758.853259,0.000224,7]
[388917970,1759497047951,-758.853259,0.000224,7]
[388917971,1759497047960,-166061.18490595,0.0002244,2]
[388917972,1759497047969,-352.56,0.00022451,3]
[388917973,1759497047980,-151.0,0.00022454,7]
[388917974,1759497047989,-151.0,0.00022454,7]
[388917975,1759497047999,-173.335671,0.00022454,7]
[388917976,1759497048009,-173.335671,0.00022454,7]
[388917977,1759497048018,-173.335671,0.00022454,7]
[388917978,1759497048027,-173.335671,0.00022454,7]
[388917979,1759497048038,-293.47406221,0.00022454,7]
[388917980,1759497048047,-500.0,0.00022454,2]
[388917981,1759497048057,-500.0,0.00022454,2]
[388917982,1759497048067,-500.0,0.00022461,2]
[388917983,1759497048076,-500.02,0.00022461,2]
[388917984,1759497048086,-500.0,0.00022461,2]
[388917985,1759497048096,-500.0,0.00022461,2]
[388917986,1759497048105,-151.0,0.00022463,7]
[388917987,1759497048115,-151.0,0.00022463,7]
[388917988,1759497048124,-161.84,0.00022463,2]
[388917989,1759497048134,-160.0,0.00022514,2]
[388917990,1759497048143,-421.20029874,0.00022516,2]
[388917991,1759497048153,-1000.0,0.00022516,2]
[388917992,1759497048162,-500.0,0.00022516,2]
[388917993,1759497048171,-1000.0,0.00022516,2]
[388917994,1759497048180,-1000.0,0.00022516,2]
[388917995,1759497048190,-1000.0,0.00022516,2]
[388917996,1759497048200,-352.56,0.00022528,3]
[388917997,1759497048210,-705.12,0.00022532,3]
[388917998,1759497048219,-1410.23,0.00022538,3]
[388917999,1759497048227,-151.0,0.00022542,7]
[388918000,1759497048235,-151.0,0.00022542,7]
[388918001,1759497048243,-500.0,0.00022551,2]
[388918002,1759497048252,-500.02,0.00022551,2]
[388918003,1759497048262,-500.0,0.00022551,2]
[388918004,1759497048272,-248.65994002,0.00022551,2]
[388918005,1759497048281,-151.0,0.00022552,3]
[388918006,1759497048291,-151.0,0.00022552,3]
[388918007,1759497048300,-151.65361716,0.00022552,3]
[388918008,1759497048309,-282.68928815,0.00022552,3]
[388918009,1759497048318,-151.45539955,0.00022552,3]
[388918010,1759497048327,-151.32202449,0.00022552,3]
[388918011,1759497048336,-151.0,0.00022552,7]
[388918012,1759497048345,-151.0,0.00022552,7]
[388918013,1759497048354,-293.47406221,0.00022552,3]
[388918014,1759497048364,-160.0,0.00022552,3]
[388918015,1759497048373,-151.0,0.00022552,7]
[388918016,1759497048382,-223.377298,0.00022552,7]
[388918017,1759497048391,-173.335671,0.00022552,7]
[388918018,1759497048401,-173.335671,0.00022552,7]
[388918019,1759497048410,-173.335671,0.00022552,7]
[388918020,1759497048419,-173.335676,0.00022552,7]
[388918021,1759497048428,-151.0,0.00022552,7]
[388918022,1759497048437,-200.461132,0.00022552,7]
[388918023,1759497048446,-758.853259,0.00022552,7]
[388918024,1759497048455,-758.853259,0.00022552,7]
[388918025,1759497048465,-758.853259,0.00022552,7]
[388918026,1759497048473,-758.853261,0.00022552,7]
[388918027,1759497048483,-1349.47082626,0.00022561,2]
[388918028,1759497048492,-151.0,0.00022562,7]
[388918029,1759497048501,-151.0,0.00022562,7]
[388918030,1759497048510,-1000.0,0.00022562,2]
[388918031,1759497048519,-1007.36509066,0.00022562,2]
[388918032,1759497048528,-151.0,0.00022562,2]
[388918033,1759497048537,-151.0,0.00022562,2]
[388918034,1759497048547,-138.52726546,0.00022562,2]
[388918035,1759497067670,541.80375317,0.0002876,120]
[388918037,1759497172294,539.0,0.00028767,120]
[388918039,1759497308695,1065.720837,0.00016438,2]
[388918041,1759497380590,520.0,0.00018543,30]
[388918049,1759497909519,515.2,0.00018033,2]
[388918063,1759498071199,1437.56101819,0.00018,2]
[388918064,1759498075433,2968.95329701,0.00018,2]
[388918065,1759498075455,4753.93421499,0.00018,2]
[388918068,1759498125599,5246.07578501,0.00018,2]
[388918069,1759498125621,10000.01,0.00018,2]
[388918070,1759498125643,10000.01,0.00018,2]
[388918071,1759498125663,10000.01,0.00018,2]
[388918072,1759498125683,10000.01,0.00018,2]
[388918073,1759498125703,10000.01,0.00018,2]
[388918074,1759498125724,7337.14778353,0.00018,2]
[388918176,1759498237896,-473.171122,0.00018478,2]
[388918177,1759498237906,-500.0,0.00018478,2]
[388918178,1759498237916,-535.0,0.00018678,2]
[388918179,1759498237926,-97.66700472,0.00018733,2]
[388918180,1759498238006,-202.33299528,0.00018733,2]
[388918181,1759498238016,-336.28195882,0.00018733,2]
[388918182,1759498238027,-863.71804118,0.00018733,2]
[388918183,1759498238038,-17304.7787378,0.00018734,2]
[388918184,1759498238048,-570.0,0.00018878,2]
[388918185,1759498238058,-302.78807257,0.000189,2]
[388918186,1759498238067,-1503.37349669,0.0001899,2]
[388918187,1759498238078,-487.38830427,0.00019059,2]
[388918188,1759498238088,-500.0,0.00019059,2]
[388918189,1759498238097,-500.0,0.00019059,2]
[388918190,1759498238107,-500.0,0.00019059,2]
[388918191,1759498238117,-500.0,0.00019059,2]
[388918192,1759498238126,-500.0,0.00019059,2]
[388918193,1759498238136,-500.0,0.00019059,2]
[388918194,1759498238146,-500.0,0.00019059,2]
[388918195,1759498238156,-500.0,0.00019059,2]
[388918196,1759498238165,-500.0,0.00019059,2]
[388918197,1759498238175,-500.0,0.00019059,2]
[388918198,1759498238185,-500.0,0.00019059,2]
[388918199,1759498238195,-642.38447012,0.00019059,2]
[388918200,1759498238205,-529.18066256,0.00019059,2]
[388918201,1759498238215,-500.0,0.00019059,2]
[388918202,1759498238228,-500.0,0.00019059,2]
[388918203,1759498238244,-396.07251218,0.00019059,2]
[388918204,1759498238255,-500.0,0.00019059,2]
[388918205,1759498238266,-500.0,0.00019059,2]
[388918206,1759498238277,-500.0,0.00019059,2]
[388918207,1759498238288,-500.0,0.00019059,2]
[388918208,1759498238299,-312.88883905,0.00019059,2]
[388918209,1759498238309,-500.0,0.00019059,2]
[388918210,1759498238319,-500.0,0.00019059,2]
[388918211,1759498238328,-500.0,0.00019059,2]
[388918212,1759498238338,-587.19496909,0.00019059,2]
[388918213,1759498238348,-500.0,0.00019059,2]
[388918214,1759498238357,-500.0,0.00019059,2]
[388918215,1759498238367,-500.0,0.00019059,2]
[388918216,1759498238377,-500.0,0.00019059,2]
[388918217,1759498238387,-28208.095106,0.0001906,7]
[388918218,1759498238396,-613.29978849,0.00019062,2]
[388918219,1759498238409,-40254.638344,0.00019062,2]
[388918225,1759498240077,-9132.06186751,0.00019062,2]
[388918226,1759498240087,-283.68429565,0.00019062,2]
[388918227,1759498240097,-190.28815441,0.00019062,2]
[388918228,1759498240106,-3301.61990003,0.00019063,7]
[388918229,1759498240137,-2479.81277944,0.00019063,7]
[388918230,1759498240150,-3063.05385926,0.00019063,7]
[388918251,1759498246224,-15042.96875989,0.00019063,7]
[388918252,1759498246239,-17534.36614958,0.00019063,7]
[388918253,1759498246251,-41967.35587114,0.00019063,7]
[388918255,1759498246499,-5208.97464092,0.00019063,7]
[388918257,1759498246510,-2042.02703384,0.00019063,7]
[388918259,1759498246521,-30132.5,0.00019063,7]
[388918271,1759498572343,810.0,0.00028767,120]
[388918272,1759498579608,800.0,0.00028767,120]
[388918273,1759498585752,800.0,0.00028767,120]
[388918274,1759498592198,800.0,0.00028767,120]
[388918275,1759498597451,800.0,0.00028767,120]
[388918276,1759498604070,800.0,0.00028767,120]
[388918282,1759498834982,622.8258184,0.00017999,2]
[388918283,1759498915478,328.37,0.00024976,30]
[388918286,1759499101772,9377.1841816,0.00018,2]
[388918287,1759499101794,10000.01,0.00018,2]
[388918288,1759499101815,10000.01,0.00018,2]
[388918289,1759499101836,10000.01,0.00018,2]
[388918290,1759499101857,3541.54104926,0.00018,2]
[388918302,1759499147130,200.0,0.0002876,120]
[388918305,1759499264033,10000.0,0.00026,60]
[388918306,1759499352892,321.1,0.00028767,120]
[388918310,1759499386679,9368.9112982,0.00026,60]
[388918434,1759499435566,-1384.52540845,0.00018638,2]
[388918435,1759499435576,-500.0,0.00018811,2]
[388918436,1759499435586,-1200.0,0.00018876,2]
[388918437,1759499435596,-4975.35414054,0.00018877,2]
[388918438,1759499435606,-300.0,0.00018897,2]
[388918439,1759499435615,-300.0,0.00018897,2]
[388918440,1759499435624,-300.0,0.00018897,2]
[388918441,1759499435634,-4975.3541405,0.00018899,2]
[388918442,1759499435643,-500.0,0.000189,2]
[388918443,1759499435653,-4421.60852478,0.0001892,2]
[388918450,1759499438167,-553.74561572,0.0001892,2]
[388918451,1759499438177,-66.21086428,0.0001894,2]
[388918452,1759499438188,-268.73987525,0.0001894,2]
[388918453,1759499438199,-500.0,0.0001894,2]
[388918454,1759499438209,-500.0,0.0001894,2]
[388918455,1759499438219,-256.98764878,0.0001894,2]
[388918456,1759499438229,-500.0,0.0001894,2]
[388918457,1759499438239,-500.0,0.0001894,2]
[388918458,1759499438251,-387.49065215,0.0001894,2]
[388918459,1759499438262,-260.82017277,0.0001894,2]
[388918460,1759499438271,-500.0,0.0001894,2]
[388918461,1759499438281,-500.0,0.0001894,2]
[388918462,1759499438291,-500.0,0.0001894,2]
[388918463,1759499438301,-247.40003125,0.0001894,2]
[388918464,1759499438311,-182.42904586,0.00018941,2]
[388918465,1759499438322,-343.53765833,0.00018941,2]
[388918466,1759499438332,-21820.88136504,0.00018941,2]
[388918467,1759499438354,-6241.12088669,0.00018941,2]
[388918468,1759499438366,-2268.35815529,0.00018941,2]
[388918503,1759499440185,-598.44763185,0.00018941,2]
[388918514,1759499443467,10000.0,0.00025,30]
[388918563,1759499446306,-4476.60000002,0.00018941,2]
[388918564,1759499446361,-9857.20433737,0.00018941,2]
[388918565,1759499446371,-4975.3541405,0.00018942,2]
[388918566,1759499446380,-244.62087073,0.00018961,2]
[388918567,1759499446484,-955.37912927,0.00018961,2]
[388918568,1759499446494,-72435.3932911,0.00018963,2]
[388918569,1759499446504,-4975.3541405,0.00018963,2]
[388918570,1759499446514,-200.0,0.00018963,10]
[388918571,1759499446524,-200.0,0.00018963,10]
[388918572,1759499446533,-200.0,0.00018963,10]
[388918574,1759499446543,-200.0,0.00018963,10]
[388918576,1759499446552,-200.0,0.00018963,10]
[388918578,1759499446562,-200.0,0.00018963,10]
[388918579,1759499446572,-200.0,0.00018963,10]
[388918580,1759499446581,-200.0,0.00018963,10]
[388918581,1759499446591,-200.0,0.00018963,10]
[388918582,1759499446600,-200.0,0.00018963,10]
[388918583,1759499446609,-200.0,0.00018963,10]
[388918584,1759499446618,-200.0,0.00018963,10]
[388918585,1759499446628,-200.0,0.00018963,10]
[388918586,1759499446636,-200.0,0.00018963,10]
[388918587,1759499446646,-200.0,0.00018963,10]
[388918588,1759499446655,-200.0,0.00018963,10]
[388918589,1759499446664,-200.0,0.00018963,10]
[388918590,1759499446673,-200.0,0.00018963,10]
[388918591,1759499446683,-200.0,0.00018963,10]
[388918592,1759499446692,-200.0,0.00018963,10]
[388918593,1759499446701,-200.0,0.00018963,10]
[388918594,1759499446710,-200.0,0.00018963,10]
[388918595,1759499446719,-200.0,0.00018963,10]
[388918596,1759499446728,-200.0,0.00018963,10]
[388918597,1759499446738,-200.0,0.00018963,10]
[388918598,1759499446748,-200.0,0.00018963,10]
[388918599,1759499446759,-200.0,0.00018963,10]
[388918600,1759499446768,-200.0,0.00018963,10]
[388918601,1759499446778,-200.0,0.00018963,10]
[388918602,1759499446787,-200.0,0.00018963,10]
[388918603,1759499446796,-500.0,0.00018976,2]
[388918604,1759499446806,-535.0,0.00019011,2]
[388918605,1759499446815,-278.27,0.00019026,3]
[388918606,1759499446824,-235.7382363,0.00019036,2]
[388918607,1759499446834,-1975.2033233,0.00019036,2]
[388918608,1759499446843,-28081.5102206,0.00019036,2]
[388918609,1759499446852,-1483.3593024,0.00019036,2]
[388918610,1759499446861,-151.0,0.00019036,2]
[388918611,1759499446870,-151.0,0.00019036,2]
[388918612,1759499446880,-151.0,0.00019036,2]
[388918613,1759499446889,-151.0,0.00019036,2]
[388918614,1759499446898,-151.0,0.00019036,2]
[388918615,1759499446908,-151.0,0.00019036,2]
[388918616,1759499446918,-151.0,0.00019036,2]
[388918617,1759499446929,-151.0,0.00019036,2]
[388918618,1759499446938,-151.570311,0.00019036,2]
[388918619,1759499446947,-173.731696,0.00019036,2]
[388918620,1759499446957,-173.731696,0.00019036,2]
[388918621,1759499446966,-173.731696,0.00019036,2]
[388918622,1759499446975,-173.731696,0.00019036,2]
[388918623,1759499446985,-151.0,0.00019036,2]
[388918624,1759499446994,-268.854795,0.00019036,2]
[388918625,1759499447003,-268.854795,0.00019036,2]
[388918626,1759499447013,-268.854795,0.00019036,2]
[388918627,1759499447022,-268.854795,0.00019036,2]
[388918628,1759499447032,-151.0,0.00019036,2]
[388918629,1759499447043,-151.0,0.00019036,2]
[388918630,1759499447054,-211.773376,0.00019036,2]
[388918631,1759499447065,-151.0,0.00019036,2]
[388918632,1759499447074,-151.0,0.00019036,2]
[388918633,1759499447083,-151.0,0.00019036,2]
[388918634,1759499447093,-151.0,0.00019036,2]
[388918635,1759499447102,-151.0,0.00019036,2]
[388918636,1759499447112,-7329.424172,0.00019036,2]
[388918637,1759499447122,-151.849404,0.00019036,2]
[388918638,1759499447131,-151.0,0.00019036,2]
[388918639,1759499447142,-7329.424172,0.00019036,2]
[388918640,1759499447152,-151.0,0.00019036,2]
[388918641,1759499447161,-7329.424172,0.00019036,2]
[388918642,1759499447171,-7329.424172,0.00019036,2]
[388918643,1759499447191,-151.0,0.00019036,2]
[388918644,1759499447202,-234.947211,0.00019036,2]
[388918645,1759499447212,-153.305078,0.00019036,2]
[388918646,1759499447222,-234.947211,0.00019036,2]
[388918647,1759499447232,-234.947211,0.00019036,2]
[388918648,1759499447241,-234.947211,0.00019036,2]
[388918649,1759499447251,-151.0,0.00019036,2]
[388918650,1759499447261,-442.071574,0.00019036,2]
[388918651,1759499447271,-442.071574,0.00019036,2]
[388918652,1759499447281,-442.071574,0.00019036,2]
[388918653,1759499447291,-442.071574,0.00019036,2]
[388918654,1759499447301,-151.0,0.00019036,2]
[388918655,1759499447312,-151.0,0.00019036,2]
[388918656,1759499447322,-241.540397,0.00019036,2]
[388918657,1759499447332,-151.0,0.00019036,2]
[388918658,1759499447344,-200.332556,0.00019036,2]
[388918659,1759499447354,-200.332556,0.00019036,2]
[388918660,1759499447364,-355.309001,0.00019036,2]
[388918661,1759499447374,-200.332556,0.00019036,2]
[388918662,1759499447385,-355.309001,0.00019036,2]
[388918663,1759499447395,-200.332556,0.00019036,2]
[388918664,1759499447405,-151.0,0.00019036,2]
[388918665,1759499447415,-355.309001,0.00019036,2]
[388918666,1759499447425,-355.309001,0.00019036,2]
[388918667,1759499447434,-151.0,0.00019036,2]
[388918668,1759499447444,-151.0,0.00019036,2]
[388918669,1759499447455,-151.0,0.00019036,2]
[388918670,1759499447465,-152.30299,0.00019036,2]
[388918671,1759499447475,-151.0,0.00019036,2]
[388918672,1759499447486,-233.57735,0.00019036,2]
[388918673,1759499447496,-233.57735,0.00019036,2]
[388918674,1759499447507,-233.57735,0.00019036,2]
[388918675,1759499447517,-233.57735,0.00019036,2]
[388918676,1759499447527,-151.0,0.00019036,2]
[388918677,1759499447537,-151.28308,0.00019036,2]
[388918678,1759499447547,-1625.989705,0.00019036,2]
[388918679,1759499447557,-1625.989705,0.00019036,2]
[388918680,1759499447567,-190.128886,0.00019036,2]
[388918681,1759499447577,-1625.989705,0.00019036,2]
[388918682,1759499447587,-190.128886,0.00019036,2]
[388918683,1759499447598,-190.128886,0.00019036,2]
[388918684,1759499447608,-1625.989705,0.00019036,2]
[388918685,1759499447619,-190.128886,0.00019036,2]
[388918686,1759499447628,-151.0,0.00019036,2]
[388918687,1759499447638,-151.0,0.00019036,2]
[388918688,1759499447648,-151.0,0.00019036,2]
[388918689,1759499447660,-151.0,0.00019036,2]
[388918690,1759499447670,-151.0,0.00019036,2]
[388918691,1759499447681,-1264.177089,0.00019036,2]
[388918692,1759499447691,-1264.177089,0.00019036,2]
[388918693,1759499447700,-1264.177089,0.00019036,2]
[388918694,1759499447710,-151.0881458,0.00019036,2]
[388918695,1759499447720,-1264.177089,0.00019036,2]
[388918696,1759499447730,-151.0,0.00019036,2]
[388918697,1759499447740,-151.0,0.00019036,2]
[388918698,1759499447751,-1810.55,0.00019053,3]
[388918699,1759499447761,-905.28,0.00019053,3]
[388918700,1759499447772,-452.64,0.00019053,3]
[388918701,1759499447784,-226.32,0.00019053,3]
[388918702,1759499447794,-678.97,0.00019053,3]
[388918703,1759499447804,-151.0,0.00019053,2]
[388918704,1759499447814,-151.0,0.00019053,2]
[388918705,1759499447824,-154.372045,0.00019053,2]
[388918706,1759499447834,-151.0,0.00019053,2]
[388918707,1759499447843,-565.306844,0.00019053,2]
[388918708,1759499447854,-565.306844,0.00019053,2]
[388918709,1759499447864,-565.306844,0.00019053,2]
[388918710,1759499447875,-565.306844,0.00019053,2]
[388918711,1759499447885,-151.0,0.00019053,2]
[388918712,1759499447894,-151.0,0.00019053,2]
[388918713,1759499447903,-151.0,0.00019053,2]
[388918714,1759499447913,-151.0,0.00019053,2]
[388918715,1759499447923,-223.437513,0.00019053,2]
[388918716,1759499447933,-151.0,0.00019053,2]
[388918717,1759499447942,-223.437513,0.00019053,2]
[388918718,1759499447952,-152.406916,0.00019053,2]
[388918719,1759499447961,-223.437513,0.00019053,2]
[388918720,1759499447971,-223.437513,0.00019053,2]
[388918721,1759499447981,-151.0,0.00019053,2]
[388918722,1759499447991,-163.366272,0.00019053,2]
[388918723,1759499448000,-151.0,0.00019053,2]
[388918724,1759499448010,-163.366272,0.00019053,2]
[388918725,1759499448020,-151.0,0.00019053,2]
[388918726,1759499448030,-163.366272,0.00019053,2]
[388918727,1759499448040,-163.366272,0.00019053,2]
[388918728,1759499448049,-151.396772,0.00019053,2]
[388918729,1759499448058,-151.0,0.00019053,2]
[388918730,1759499448069,-151.0,0.00019053,2]
[388918731,1759499448078,-234.157506,0.00019053,2]
[388918732,1759499448088,-151.0,0.00019053,2]
[388918733,1759499448098,-157.551825,0.00019053,2]
[388918734,1759499448108,-151.0,0.00019053,2]
[388918735,1759499448360,-151.0,0.00019053,2]
[388918736,1759499448370,-151.0,0.00019053,2]
[388918737,1759499448380,-151.0,0.00019053,2]
[388918738,1759499448390,-151.0,0.00019053,2]
[388918739,1759499448399,-151.0,0.00019053,2]
[388918740,1759499448409,-151.0,0.00019053,2]
[388918741,1759499448419,-151.0,0.00019053,2]
[388918742,1759499448429,-151.0,0.00019053,2]
[388918743,1759499448439,-173.731696,0.00019053,2]
[388918744,1759499448448,-173.731696,0.00019053,2]
[388918745,1759499448459,-173.731696,0.00019053,2]
[388918746,1759499448468,-173.731696,0.00019053,2]
[388918747,1759499448478,-251.968773,0.00019053,2]
[388918748,1759499448487,-268.854795,0.00019053,2]
[388918749,1759499448497,-268.854795,0.00019053,2]
[388918750,1759499448508,-268.854795,0.00019053,2]
[388918751,1759499448518,-268.854795,0.00019053,2]
[388918752,1759499448527,-151.0,0.00019053,2]
[388918753,1759499448538,-151.0,0.00019053,2]
[388918754,1759499448548,-151.0,0.00019053,2]
[388918755,1759499448557,-151.0,0.00019053,2]
[388918756,1759499448567,-151.0,0.00019053,2]